bitfinex-derivatives/quotes_SOLF0:USTF0_20250623
["timestamp","ask_amount","ask_price","bid_price","bid_amount"]
[1750641031461,42.14,132.2,132.18,5.41749555]
[1750641031666,696.0,132.23,132.18,5.41749555]
[1750641033064,5.41749555,132.2,132.14,5.41749555]
[1750641033262,42.14,132.19,132.14,5.41749555]
[1750641033462,42.14,132.19,132.16,7.5639]
[1750641034070,42.14,132.19,132.17,7.5637]
[1750641035474,42.14,132.19,132.18,7.5631]
[1750641036670,41.66,132.22,132.21,7.561]
[1750641036867,653.86,132.23,132.18,8.2386627]
[1750641037066,695.52,132.23,132.22,7.5608]
[1750641039572,695.52,132.23,132.18,13.0976627]
[1750641039872,695.52,132.23,132.18,10.7345627]
[1750641040373,8.2386627,132.29,132.2,8.2386627]
[1750641040678,41.66,132.28,132.2,8.2386627]
[1750641040869,189.8,132.28,132.2,8.2386627]
[1750641041075,8.2386627,132.27,132.2,8.2386627]
[1750641041376,8.2386627,132.27,132.24,7.5595]
[1750641041580,148.16,132.26,132.2,8.2386627]
[1750641042879,148.16,132.26,132.23,7.5599]
[1750641043979,148.16,132.26,132.22,7.5606]
[1750641044176,148.16,132.26,132.18,10.7345627]
[1750641044579,7.5595,132.25,132.21,7.5609]
[1750641044788,41.64,132.24,132.21,7.5609]
[1750641044977,41.64,132.24,132.18,10.7345627]
[1750641045283,41.64,132.24,132.21,7.561]
[1750641045481,41.64,132.24,132.18,10.7345627]
[1750641045882,49.1997,132.24,132.21,7.5611]
[1750641046582,49.1997,132.24,132.2,7.5617]
[1750641047280,41.64,132.24,132.17,4.7563]
[1750641047585,8.2386627,132.21,132.13,4.9026]
[1750641047777,197.1824,132.2,132.13,4.9026]
[1750641048183,189.62,132.2,132.13,4.9026]
[1750641048385,7.5629,132.19,132.16,7.5641]
[1750641051780,197.182,132.2,132.13,4.9026]
[1750641051980,189.62,132.2,132.14,8.2386627]
[1750641052384,189.62,132.2,132.18,7.5631]
[1750641052981,189.62,132.2,132.14,8.2386627]
[1750641053583,197.182,132.2,132.14,8.2386627]
[1750641054082,197.182,132.2,132.17,7.5636]
[1750641054278,202.58988179,132.2,132.17,7.5636]
[1750641054673,195.02788179,132.2,132.17,7.5636]
[1750641054883,195.02788179,132.2,132.13,10.31048179]
[1750641054884,189.62,132.2,132.15,5.40788179]
[1750641056386,189.62,132.2,132.18,7.5629]
[1750641058786,189.62,132.2,132.17,7.5636]
[1750641059787,197.182,132.2,132.17,7.5636]
[1750641060193,189.62,132.2,132.16,7.564]
[1750641061095,7.5628,132.19,132.16,7.564]
[1750641061991,189.62,132.2,132.14,2.4368]
[1750641062195,189.62,132.2,132.15,5.40788179]
[1750641062996,2.4256,132.24,132.17,5.40788179]
[1750641063193,5.40788179,132.26,132.19,5.40788179]
[1750641063392,41.66,132.24,132.19,5.40788179]
[1750641064499,41.66,132.24,132.23,7.5603]
[1750641067410,41.36,132.27,132.26,7.5583]
[1750641069204,5.87643185,132.29,132.25,5.40788179]
[1750641069205,41.34,132.29,132.25,5.40788179]
[1750641070708,41.34,132.29,132.28,7.5574]
[1750641072308,41.34,132.29,132.27,7.5578]
[1750641073007,41.34,132.29,132.24,5.40788179]
[1750641073316,5.80429716,132.28,132.22,5.40788179]
[1750641073515,54.30498179,132.29,132.22,5.40788179]
[1750641074115,7.5574,132.28,132.25,7.5588]
[1750641074312,46.74788179,132.29,132.22,5.40788179]
[1750641074613,46.74788179,132.29,132.25,7.5588]
[1750641074915,46.74788179,132.29,132.21,7.276]
[1750641075108,162.81921574,132.28,132.21,12.68388179]
[1750641075305,155.4776,132.28,132.24,7.5592]
[1750641075511,147.92,132.28,132.24,7.5592]
[1750641076004,5.40788179,132.27,132.23,7.5601]
[1750641076205,17.20356431,132.27,132.21,2.4255]
[1750641076515,147.92,132.28,132.22,5.40788179]
[1750641076516,153.32788179,132.28,132.22,5.40788179]
[1750641076818,5.80977097,132.27,132.22,5.40788179]
[1750641077019,153.32788179,132.28,132.22,5.40788179]
[1750641077311,7.5583,132.27,132.24,7.5593]
[1750641077514,7.5583,132.27,132.22,5.40788179]
[1750641077714,153.32788179,132.28,132.22,5.40788179]
[1750641077916,7.5589,132.26,132.22,7.5606]
[1750641078117,41.34,132.25,132.21,2.4255]
[1750641078612,41.34,132.25,132.22,7.5607]
[1750641079410,48.8991,132.25,132.21,7.561]
[1750641079816,41.34,132.25,132.21,7.561]
[1750641080215,7.5601,132.24,132.21,7.561]
[1750641082720,48.8993,132.25,132.19,5.40788179]
[1750641082926,41.34,132.25,132.19,5.40788179]
[1750641083414,41.34,132.25,132.22,7.5605]
[1750641084119,48.8992,132.25,132.22,7.5605]
[1750641084918,41.34,132.25,132.22,7.5605]
[1750641085115,41.34,132.25,132.23,7.5602]
[1750641085716,14.47276665,132.24,132.09,118.476]
[1750641086022,5.40788179,132.2,132.13,5.40788179]
[1750641086322,41.34,132.19,132.15,5.40788179]
[1750641086521,41.34,132.2,132.15,5.40788179]
[1750641086722,41.34,132.2,132.18,7.5627]
[1750641087317,7.5626,132.19,132.13,5.40788179]
[1750641087712,5.40788179,132.18,132.11,10.16428179]
[1750641088024,7.564,132.17,132.13,7.5656]
[1750641088224,41.34,132.16,132.13,7.5656]
[1750641089523,41.34,132.16,132.14,7.5653]
[1750641091025,41.34,132.16,132.11,10.16428179]
[1750641092222,41.34,132.16,132.14,7.5654]
[1750641094726,41.34,132.16,132.15,7.5648]
[1750641095821,41.34,132.16,132.14,7.5653]
[1750641096017,41.34,132.16,132.11,2.4418]
[1750641096625,41.34,132.16,132.13,7.5656]
[1750641097328,41.34,132.16,132.14,7.5653]
[1750641097725,41.34,132.16,132.13,7.5658]
[1750641099224,41.34,132.16,132.15,7.5648]
[1750641099427,41.3,132.2,132.14,5.40788179]
[1750641099729,41.3,132.2,132.16,5.40788179]
[1750641100430,41.3,132.2,132.11,43.7418]
[1750641100431,41.3,132.2,132.19,7.5626]
[1750641102428,41.3,132.23,132.21,7.5614]
[1750641103024,41.3,132.23,132.2,7.5617]
[1750641104325,41.3,132.23,132.21,7.5614]
[1750641105335,41.3,132.23,132.22,7.5608]
[1750641107932,9.3423348,132.36,132.22,5.40788179]
[1750641108133,44.37743407,132.31,132.25,5.40788179]
[1750641108535,50.15691825,132.31,132.25,12.96688179]
[1750641108832,47.05948418,132.31,132.25,5.40788179]
[1750641109227,5.40788179,132.28,132.2,5.40788179]
[1750641109431,189.18,132.27,132.2,5.40788179]
[1750641109631,5.40788179,132.26,132.2,5.40788179]
[1750641110432,7.5592,132.25,132.21,7.5612]
[1750641111034,12.96658179,132.26,132.22,7.5608]
[1750641112338,7.5587,132.26,132.22,7.5608]
[1750641115039,8.23300067,132.25,132.17,2.3618]
[1750641115536,14.72460481,132.26,132.19,7.5622]
[1750641115736,8.23300067,132.23,132.19,7.5622]
[1750641115944,189.14,132.22,132.19,7.5622]
[1750641117545,8.23300067,132.21,132.14,8.23300067]
[1750641117837,8.23300067,132.19,132.12,8.23300067]
[1750641118040,41.28,132.18,132.15,7.5644]
[1750641118339,41.28,132.18,132.12,8.23300067]
[1750641118542,41.28,132.23,132.17,8.23772429]
[1750641118740,41.28,132.23,132.18,8.23405487]
[1750641119949,41.28,132.23,132.21,7.561]
[1750641120245,41.28,132.23,132.18,8.23405487]
[1750641120637,41.28,132.23,132.22,7.5608]
[1750641122341,41.28,132.27,132.26,7.5586]
[1750641124045,41.28,132.3,132.29,7.5564]
[1750641124542,41.28,132.3,132.25,8.23405487]
[1750641124543,41.28,132.3,132.28,7.5571]
[1750641124847,41.28,132.3,132.25,8.23405487]
[1750641125650,41.28,132.3,132.29,7.5568]
[1750641126942,41.28,132.3,132.29,15.79085487]
[1750641127143,236.45965802,132.32,132.31,7.5557]
[1750641129441,41.28,132.33,132.32,7.5551]
[1750641130654,653.24,132.35,132.34,7.554]
[1750641130947,653.24,132.35,132.29,8.23405487]
[1750641131643,653.24,132.35,132.31,8.23405487]
[1750641131845,800.98,132.35,132.31,8.23405487]
[1750641132148,41.14,132.36,132.35,7.5534]
[1750641133646,41.14,132.39,132.38,7.5516]
[1750641134851,841.78,132.42,132.41,7.55]
[1750641135144,694.06,132.42,132.41,7.55]
[1750641138248,41.14,132.42,132.41,7.55]
[1750641139654,41.14,132.42,132.4,7.5501]
[1750641139847,41.14,132.42,132.38,8.23405487]
[1750641140247,41.14,132.42,132.41,7.55]
[1750641141949,41.14,132.42,132.4,7.5504]
[1750641142147,41.14,132.42,132.37,8.23405487]
[1750641142351,41.14,132.42,132.35,8.23405487]
[1750641142352,147.6,132.41,132.35,8.23405487]
[1750641142652,155.1504,132.41,132.37,7.5519]
[1750641143053,147.6,132.41,132.38,7.5514]
[1750641143255,147.6,132.41,132.35,8.23405487]
[1750641143550,155.15,132.41,132.35,8.23405487]
[1750641144346,8.23405487,132.38,132.31,15.36725487]
[1750641144555,41.12,132.37,132.31,15.36725487]
[1750641145057,41.12,132.37,132.35,7.5533]
[1750641146559,41.12,132.37,132.36,7.5528]
[1750641151756,277.95445501,132.44,132.35,8.23405487]
[1750641151956,5.78480182,132.43,132.35,8.23405487]
[1750641152461,5.78468479,132.43,132.35,8.23405487]
[1750641152663,13.33378479,132.43,132.35,8.23405487]
[1750641152958,277.95445501,132.44,132.37,8.23405487]
[1750641153167,433.04315501,132.44,132.4,7.55]
[1750641153459,8.23405487,132.43,132.35,8.23405487]
[1750641153663,15.78335487,132.43,132.39,7.5507]
[1750641153859,15.78335487,132.43,132.35,8.23405487]
[1750641154059,14.02070046,132.43,132.36,8.23405487]
[1750641154259,14.02070046,132.43,132.39,7.5508]
[1750641154563,14.02070046,132.43,132.36,8.23405487]
[1750641154959,14.02070046,132.43,132.39,7.5508]
[1750641155465,21.56970046,132.43,132.39,7.5508]
[1750641155666,15.78305487,132.43,132.4,7.5505]
[1750641155968,8.23405487,132.43,132.36,8.23405487]
[1750641156359,8.23405487,132.43,132.4,7.5502]
[1750641156757,425.49445501,132.44,132.4,7.5502]
[1750641156954,425.49445501,132.44,132.36,8.23405487]
[1750641157866,7.5497,132.42,132.39,7.5508]
[1750641159864,17.11613373,132.43,132.34,8.23405487]
[1750641160360,12.9403022,132.41,132.38,7.5512]
[1750641160561,188.46,132.4,132.38,7.5512]
[1750641161565,188.46,132.4,132.39,7.5511]
[1750641161766,40.96,132.43,132.39,5.3901022]
[1750641163170,40.96,132.43,132.42,7.5489]
[1750641174379,40.94,132.46,132.43,7.5483]
[1750641174582,8.93812951,132.45,132.4,8.20652702]
[1750641174780,40.94,132.46,132.4,8.20652702]
[1750641174987,8.93784881,132.45,132.4,8.20652702]
[1750641175186,40.94,132.46,132.4,8.20652702]
[1750641175480,40.94,132.46,132.42,8.20652702]
[1750641175686,40.94,132.46,132.44,8.20652702]
[1750641175885,693.42,132.49,132.47,7.5461]
[1750641176179,8.93108646,132.48,132.47,7.5461]
[1750641177678,693.42,132.49,132.47,7.5461]
[1750641178785,693.42,132.49,132.43,2.3731]
[1750641178983,8.94004866,132.48,132.43,2.3731]
[1750641179290,8.94004866,132.47,132.42,8.20652702]
[1750641179482,5.88216834,132.48,132.42,8.20652702]
[1750641179787,16.48800476,132.47,132.43,7.5486]
[1750641179988,8.94110476,132.46,132.43,7.5486]
[1750641180190,21.63519536,132.48,132.4,49.14652702]
[1750641180485,8.94057928,132.47,132.42,8.20652702]
[1750641180685,10.66550562,132.48,132.44,7.5478]
[1750641180887,5.82095389,132.47,132.44,7.5478]
[1750641181074,7.5463,132.48,132.42,8.20652702]
[1750641181075,16.48625044,132.48,132.42,8.20652702]
[1750641181280,7.5467,132.47,132.42,8.20652702]
[1750641181475,8.93995044,132.48,132.42,8.20652702]
[1750641182095,16.48615044,132.48,132.45,7.5477]
[1750641182586,8.93995044,132.48,132.46,7.5471]
[1750641182781,3.11899452,132.48,132.46,7.5471]
[1750641183187,3.11899452,132.48,132.45,7.5475]
[1750641183690,700.9657,132.49,132.45,7.5475]
[1750641183883,700.9657,132.49,132.46,7.5471]
[1750641184390,706.34911713,132.49,132.43,5.38341713]
[1750641186482,693.42,132.49,132.45,5.38341713]
[1750641186680,693.42,132.49,132.43,5.38341713]
[1750641186891,7.5478,132.45,132.39,7.78901713]
[1750641187094,188.24,132.44,132.39,2.4056]
[1750641187495,188.24,132.44,132.42,7.549]
[1750641188494,188.24,132.44,132.41,7.5497]
[1750641189598,188.24,132.44,132.42,7.5493]
[1750641190889,193.62341713,132.44,132.32,681.46762092]
[1750641191194,5.38341713,132.42,132.35,5.38341713]
[1750641191395,12.93311713,132.42,132.38,7.5514]
[1750641191791,5.38341713,132.4,132.34,2.4899]
[1750641192096,40.78,132.39,132.34,2.4899]
[1750641192793,40.78,132.39,132.36,7.5523]
[1750641193296,40.78,132.39,132.37,7.5521]
[1750641194695,7.5523,132.37,132.28,14.05822092]
[1750641194900,5.38341713,132.35,132.29,12.45811713]
[1750641195191,46.18341713,132.35,132.33,7.5545]
[1750641195799,53.73691713,132.35,132.29,12.45811713]
[1750641196097,46.18341713,132.35,132.29,12.45811713]
[1750641196290,46.18341713,132.35,132.32,7.555]
[1750641196497,46.18341713,132.35,132.29,7.0747]
[1750641196695,5.38341713,132.33,132.29,4.6811]
[1750641196901,12.93841713,132.33,132.29,9.9418]
[1750641197195,5.38341713,132.31,132.25,7.68691713]
[1750641197399,46.18341713,132.31,132.25,9.97451713]
[1750641199104,46.18341713,132.31,132.27,7.5577]
[1750641199105,53.73921713,132.31,132.27,7.5577]
[1750641199399,46.18341713,132.31,132.27,7.5577]
[1750641199802,46.18341713,132.31,132.28,7.5574]
[1750641200203,46.18341713,132.31,132.29,7.5564]
[1750641200501,40.8,132.31,132.25,9.97451713]
[1750641200700,40.8,132.31,132.26,5.38341713]
[1750641201400,40.8,132.31,132.29,7.5564]
[1750641201903,46.18341713,132.31,132.28,7.5572]
[1750641202095,46.18341713,132.31,132.25,4.5911]
[1750641202096,5.38341713,132.29,132.25,4.5911]
[1750641202597,5.38341713,132.29,132.26,7.5582]
[1750641202797,5.38341713,132.29,132.25,2.2876]
[1750641203000,5.38341713,132.29,132.26,7.5584]
[1750641204997,5.38341713,132.29,132.25,7.5589]
[1750641205506,5.38341713,132.27,132.25,7.5589]
[1750641205800,46.20341713,132.27,132.25,7.5589]
[1750641207599,46.20341713,132.27,132.26,7.5585]
[1750641207905,40.82,132.27,132.26,7.5585]
[1750641208295,40.82,132.3,132.28,7.5572]
[1750641209406,40.82,132.3,132.29,7.5568]
[1750641216097,698.82341713,132.33,132.32,7.5551]
[1750641216302,693.44,132.33,132.32,7.5551]
[1750641218208,40.82,132.33,132.32,7.5551]
[1750641218604,40.82,132.33,132.27,7.75141713]
[1750641218806,46.20341713,132.33,132.27,2.368]
[1750641219406,53.75831713,132.33,132.29,7.5563]
[1750641220115,53.75831713,132.33,132.3,7.5563]
[1750641224112,46.20341713,132.33,132.26,4.8751]
[1750641224415,5.38341713,132.31,132.26,4.8751]
[1750641224715,12.93941713,132.31,132.28,7.5571]
[1750641225308,7.5563,132.3,132.27,7.5579]
[1750641225503,46.04341713,132.29,132.22,50.84681713]
[1750641225714,40.66,132.28,132.22,50.84681713]
[1750641225914,5.38341713,132.27,132.22,45.4634]
[1750641226114,5.38341713,132.27,132.22,4.8034]
[1750641227924,5.38341713,132.27,132.25,7.5591]
[1750641229526,12.94151713,132.27,132.24,7.5595]
[1750641230421,7.5586,132.26,132.23,7.56]
[1750641230621,40.66,132.25,132.23,7.56]
[1750641232225,40.66,132.25,132.22,7.5606]
[1750641232425,46.04341713,132.25,132.19,7.72591713]
[1750641232627,5.38341713,132.23,132.19,2.3425]
[1750641232828,40.66,132.22,132.2,7.5615]
[1750641234519,40.66,132.22,132.21,7.5614]
[1750641235929,40.66,132.25,132.2,5.38341713]
[1750641236925,40.66,132.25,132.24,7.5597]
[1750641238530,5.38341713,132.27,132.2,5.38341713]
[1750641238722,40.66,132.26,132.2,5.38341713]
[1750641240327,40.66,132.26,132.25,7.5591]
[1750641248232,40.66,132.29,132.23,5.38341713]
[1750641248431,40.66,132.29,132.25,5.38341713]
[1750641249330,40.66,132.29,132.28,7.5574]
[1750641249727,693.4,132.32,132.27,5.38341713]
[1750641249930,693.4,132.32,132.31,7.5557]
[1750641250131,693.4,132.32,132.27,5.38341713]
[1750641250334,698.78341713,132.32,132.27,5.38341713]
[1750641251236,698.78341713,132.32,132.24,2.4783]
[1750641251438,698.78341713,132.32,132.26,5.38341713]
[1750641251736,698.78341713,132.32,132.3,7.5563]
[1750641252339,698.78341713,132.32,132.26,5.38341713]
[1750641252635,698.78341713,132.32,132.29,7.5565]
[1750641253839,698.78341713,132.32,132.3,7.5561]
[1750641254230,845.96341713,132.32,132.3,7.5561]
[1750641254629,845.96341713,132.32,132.31,7.5557]
[1750641254936,698.78341713,132.32,132.31,7.5557]
[1750641255136,840.56,132.32,132.31,7.5557]
[1750641255338,40.66,132.32,132.31,7.5557]
[1750641257335,40.48,132.35,132.34,7.5537]
[1750641257543,40.48,132.35,132.23,14.05822092]
[1750641257737,5.38341713,132.29,132.24,2.5037]
[1750641258039,40.48,132.28,132.24,2.5037]
[1750641259341,40.48,132.28,132.27,7.558]
[1750641276353,40.48,132.31,132.3,7.5563]
[1750641276656,40.48,132.31,132.26,5.38341713]
[1750641276854,40.48,132.31,132.29,7.5565]
[1750641277350,40.48,132.31,132.3,7.5563]
[1750641287966,43.59159908,132.31,132.3,7.5563]
[1750641289265,43.59159908,132.31,132.29,7.5566]
[1750641289468,40.48,132.31,132.29,7.5566]
[1750641289861,40.48,132.31,132.3,7.5563]
[1750641290061,49.4716788,132.31,132.3,7.5563]
[1750641290268,49.47153325,132.31,132.3,7.5563]
[1750641291070,49.47501629,132.31,132.3,7.5563]
[1750641293467,55.55601181,132.31,132.3,7.5563]
[1750641293769,49.47501629,132.31,132.3,7.5563]
[1750641293961,49.47677146,132.31,132.3,7.5563]
[1750641295871,40.48,132.31,132.3,7.5563]
[1750641296072,40.28,132.34,132.3,5.38341713]
[1750641296268,40.28,132.34,132.31,2.4098]
[1750641296976,693.04,132.36,132.31,2.4098]
[1750641297276,8.99691463,132.35,132.31,2.4098]
[1750641297467,652.76,132.36,132.35,7.5534]
[1750641297670,40.28,132.37,132.32,5.38341713]
[1750641298070,40.28,132.37,132.36,7.5524]
[1750641298269,49.26650491,132.37,132.36,7.5524]
[1750641298776,40.28,132.37,132.36,7.5524]
[1750641300374,3.10476648,132.4,132.39,7.5508]
[1750641300573,46.15188051,132.41,132.36,5.38341713]
[1750641300877,40.28,132.41,132.4,7.5506]
[1750641301271,45.66341713,132.46,132.4,5.38341713]
[1750641301571,3.10442373,132.45,132.41,2.4416]
[1750641301770,45.66341713,132.46,132.41,2.4416]
[1750641301967,45.66341713,132.46,132.43,7.5488]
[1750641302371,45.66341713,132.46,132.41,2.4416]
[1750641302769,5.38341713,132.44,132.35,4.9289]
[1750641302970,5.38341713,132.42,132.39,7.5506]
[1750641303169,40.28,132.41,132.39,7.5506]
[1750641304282,40.28,132.41,132.4,7.5506]
[1750641305979,40.28,132.41,132.35,12.72571713]
[1750641305980,40.28,132.41,132.35,7.3423]
[1750641306279,5.38341713,132.38,132.32,5.38341713]
[1750641306471,40.26,132.37,132.36,7.5524]
[1750641306873,40.26,132.37,132.32,5.38341713]
[1750641307072,40.26,132.37,132.31,2.4126]
[1750641307480,40.26,132.37,132.34,7.5538]
[1750641307874,40.26,132.37,132.31,2.4126]
[1750641309182,40.26,132.37,132.34,7.5536]
[1750641310483,5.38341713,132.36,132.33,7.5543]
[1750641312483,5.38341713,132.36,132.28,5.38341713]
[1750641312779,5.38341713,132.36,132.3,5.38341713]
[1750641313081,5.38341713,132.36,132.34,7.5539]
[1750641313880,40.26,132.37,132.32,5.38341713]
[1750641314478,40.26,132.37,132.36,7.5528]
[1750641315574,40.26,132.37,132.35,7.5532]
[1750641316983,40.26,132.37,132.29,40.28]
[1750641317175,40.26,132.37,132.32,5.38341713]
[1750641317572,40.26,132.37,132.36,7.5528]
[1750641319184,40.1,132.4,132.32,5.38341713]
[1750641319392,40.1,132.42,132.37,5.38341713]
[1750641319584,40.1,132.42,132.33,42.4253]
[1750641319889,40.1,132.42,132.39,7.5507]
[1750641320184,5.38341713,132.41,132.34,4.7708]
[1750641320381,5.38341713,132.41,132.38,7.5516]
[1750641320980,12.93371713,132.41,132.37,7.552]
[1750641321180,16.02990381,132.41,132.37,7.552]
[1750641321683,5.38341713,132.39,132.29,40.1]
[1750641321883,5.38341713,132.39,132.29,7.85661713]
[1750641321884,5.38341713,132.36,132.29,7.85661713]
[1750641322084,5.38341713,132.34,132.29,2.4732]
[1750641323695,5.38341713,132.34,132.32,7.555]
[1750641328798,12.93751713,132.34,132.31,7.5555]
[1750641329294,7.555,132.33,132.29,10.0299]
[1750641329501,45.48341713,132.32,132.27,4.8103]
[1750641329999,45.48341713,132.32,132.3,7.5561]
[1750641330993,45.48341713,132.32,132.31,7.5557]
[1750641331198,40.1,132.32,132.31,7.5557]
[1750641332901,2.4416,132.38,132.34,7.5539]
[1750641333098,5.38341713,132.36,132.3,5.38341713]
[1750641333404,5.38341713,132.36,132.31,2.4465]
[1750641333803,5.38341713,132.36,132.33,7.5542]
[1750641334003,5.38341713,132.36,132.31,2.4465]
[1750641335408,5.38341713,132.36,132.33,7.5542]
[1750641335901,5.38341713,132.36,132.31,2.4465]
[1750641336707,5.38341713,132.36,132.34,7.5539]
[1750641337203,5.38341713,132.36,132.35,7.5534]
[1750641337406,5.38341713,132.36,132.31,2.4465]
[1750641337811,5.38341713,132.36,132.33,7.5542]
[1750641338608,12.93631713,132.36,132.32,7.5549]
[1750641338909,5.38341713,132.34,132.32,7.5549]
[1750641339109,40.1,132.33,132.32,7.5549]
[1750641339312,40.1,132.33,132.27,2.4028]
[1750641339506,40.1,132.33,132.23,40.1]
[1750641339507,5.38341713,132.29,132.23,7.69151713]
[1750641339711,5.38341713,132.27,132.23,2.3081]
[1750641339913,40.1,132.26,132.22,2.4028]
[1750641340213,40.1,132.26,132.24,7.5597]
[1750641340713,40.1,132.26,132.23,7.56]
[1750641341714,47.6586,132.26,132.22,2.4028]
[1750641342009,40.1,132.26,132.22,2.4028]
[1750641342907,40.1,132.26,132.24,7.5594]
[1750641344315,40.1,132.28,132.24,5.38341713]
[1750641344714,40.1,132.28,132.27,7.558]
[1750641346012,39.96,132.32,132.26,5.38341713]
[1750641346216,39.96,132.32,132.28,5.38341713]
[1750641346416,39.96,132.32,132.29,2.4106]
[1750641346914,39.96,132.32,132.31,7.5557]
[1750641347416,39.96,132.32,132.29,2.4106]
[1750641347417,39.96,132.32,132.3,7.5561]
[1750641348119,39.96,132.32,132.29,9.9672]
[1750641349318,47.5153,132.32,132.28,7.5572]
[1750641349524,5.38341713,132.31,132.28,7.5572]
[1750641350525,12.93921713,132.31,132.28,7.5572]
[1750641350824,5.38341713,132.29,132.26,7.5585]
[1750641351034,45.34341713,132.29,132.26,7.5585]
[1750641352330,45.34341713,132.29,132.27,7.5579]
[1750641352523,39.96,132.29,132.27,7.5579]
[1750641353830,39.96,132.29,132.25,4.7688]
[1750641354032,5.38341713,132.28,132.25,2.3871]
[1750641354528,5.38341713,132.28,132.24,9.8509]
[1750641355631,12.94121713,132.28,132.24,9.8509]
[1750641355830,12.94121713,132.28,132.24,7.5593]
[1750641357134,12.94121713,132.28,132.25,7.559]
[1750641357429,5.38341713,132.28,132.22,7.88741713]
[1750641357631,45.34341713,132.29,132.22,7.88741713]
[1750641358534,45.34341713,132.29,132.26,7.558]
[1750641359733,45.34341713,132.29,132.27,7.5579]
[1750641361034,45.34341713,132.29,132.26,7.5582]
[1750641362137,45.34341713,132.29,132.27,7.5579]
[1750641362933,45.34341713,132.29,132.26,7.5583]
[1750641364037,45.34341713,132.29,132.25,7.5589]
[1750641365037,7.558,132.27,132.24,7.5596]
[1750641365340,39.98,132.26,132.24,7.5596]
[1750641365539,39.98,132.26,132.22,2.504]
[1750641365735,39.98,132.26,132.22,7.88741713]
[1750641366239,39.98,132.26,132.25,7.5591]
[1750641368737,39.98,132.26,132.22,2.504]
[1750641369138,39.98,132.26,132.24,7.5593]
[1750641370537,39.98,132.26,132.22,2.504]
[1750641370741,5.38341713,132.25,132.21,2.529]
[1750641371138,12.94281713,132.25,132.22,7.5608]
[1750641374046,7.5597,132.24,132.21,7.5611]
[1750641374242,45.36341713,132.23,132.19,2.478]
[1750641374446,5.38341713,132.21,132.17,2.3301]
[1750641374646,39.98,132.2,132.17,7.5635]
[1750641375044,39.98,132.2,132.16,7.5639]
[1750641375045,47.5422,132.2,132.16,7.5639]
[1750641375439,39.98,132.2,132.16,5.38341713]
[1750641376539,39.98,132.2,132.19,7.5625]
[1750641377856,39.98,132.2,132.18,7.5628]
[1750641378249,39.98,132.2,132.16,5.38341713]
[1750641379148,39.98,132.2,132.19,7.5625]
[1750641382052,39.86,132.24,132.18,5.38341713]
[1750641382252,39.86,132.24,132.19,7.1664]
[1750641382448,45.24341713,132.24,132.19,7.1664]
[1750641382847,45.24341713,132.24,132.2,7.5615]
[1750641385147,52.80351713,132.24,132.2,7.5615]
[1750641385350,5.38341713,132.22,132.19,7.5621]
[1750641385858,39.86,132.21,132.18,7.5628]
[1750641387160,39.86,132.21,132.19,7.5624]
[1750641387757,39.86,132.21,132.2,7.5619]
[1750641387953,39.86,132.24,132.2,5.38341713]
[1750641388354,39.86,132.24,132.21,2.4807]
[1750641389455,39.86,132.24,132.22,7.5608]
[1750641391761,39.86,132.24,132.19,4.8273]
[1750641393057,45.24341713,132.24,132.19,2.385]
[1750641393261,45.24341713,132.24,132.17,7.86431713]
[1750641393561,48.35095264,132.24,132.17,7.86431713]
[1750641393760,45.24341713,132.24,132.19,7.5624]
[1750641393958,45.24341713,132.24,132.17,7.86431713]
[1750641394170,7.5612,132.22,132.18,7.563]
[1750641394460,39.86,132.21,132.18,7.563]
[1750641395763,47.4215,132.21,132.18,7.563]
[1750641395950,39.86,132.21,132.18,7.563]
[1750641398362,47.4214,132.21,132.18,7.563]